[Event "Presidents Day NY GM A 2025"]
[Site "New York"]
[Date "2025.02.14"]
[Round "1.5"]
[White "Yang, Qindong"]
[Black "Park, Evan"]
[Result "0-1"]
[Annotator "RC"]
[ECO "E01"]
[WhiteElo "2202"]
[BlackElo "2415"]
[PlyCount "72"]
[EventDate "2025.02.12"]
[EventType "tourn"]
[EventCountry "USA"]
[SourceTitle "playchess.com"]
[Source "ChessBase"]
[SourceQuality "1"]
[TimeControl "5400+30"]

1. d4 {[%emt 0:00:13]} Nf6 {[%emt 0:00:03]} 2. c4 {[%emt 0:00:12]} e6 {[%emt 0:00:14]} 3. Nf3 {[%emt 0:00:14]} d5 {[%emt 0:00:08]} 4. g3 {[%emt 0:00:23]} Bb4+ {[%emt 0:00:12]} 5. Bd2 {[%emt 0:00:09]} Bd6 {[%emt 0:00:04]} 6. Nc3 {[%emt 0:00:35]} Nc6 {[%emt 0:01:06]} 7. Bg2 {[%emt 0:04:44]} O-O {[%emt 0:00:47]} 8. O-O {[%emt 0:10:54]} dxc4 {[%emt 0:01:38]} 9. Bg5 {[%emt 0:10:48]} h6 {[%emt 0:10:26]} 10. Bxf6 {[%emt 0:00:21]} Qxf6 {[%emt 0:00:04]} 11. Ne4 {[%emt 0:01:54]} Qf5 {[%emt 0:06:33]} 12. Ned2 {[%emt 0:03:50]} Qb5 {[%emt 0:02:54]} 13. Qc2 {[%emt 0:08:39]} e5 {[%emt 0:04:46]} 14. Nxc4 {[%emt 0:25:38]} exd4 {[%emt 0:04:14]} 15. Nxd6 {[%emt 0:00:44]} cxd6 {[%emt 0:00:04]} 16. Rad1 {[%emt 0:15:42]} Bf5 {[%emt 0:03:31]} 17. Qd2 {[%emt 0:00:20]} Bg4 {[%emt 0:01:57]} 18. Rfe1 {[%emt 0:03:21]} Bxf3 {[%emt 0:03:10]} 19. Bxf3 {[%emt 0:01:03]} d5 {[%emt 0:00:12]} 20. Rc1 {[%emt 0:05:43]} Rfe8 {[%emt 0:01:51]} 21. Red1 {[%emt 0:01:21]} Rad8 {[%emt 0:00:33]} 22. b3 {[%emt 0:00:42]} Qb6 {[%emt 0:02:30]} 23. h4 {[%emt 0:01:21]} Re6 {[%emt 0:04:19]} 24. Bg4 {[%emt 0:00:55]} Rf6 {[%emt 0:01:03]} 25. Bf3 {[%emt 0:00:25]} Ne5 {[%emt 0:02:17]} 26. Bg2 {[%emt 0:01:29]} Nc6 {[%emt 0:02:29]} 27. Qc2 {[%emt 0:01:22]} Re8 {[%emt 0:02:24]} 28. Rd2 {[%emt 0:00:10]} Qa5 {[%emt 0:03:08]} 29. Qb2 {[%emt 0:00:37]} Rf5 {[%emt 0:05:35]} 30. a3 {[%emt 0:00:32]} Qb6 {[%emt 0:02:49]} 31. b4 {[%emt 0:00:17]} d3 {[%emt 0:02:34]} 32. exd3 {[%emt 0:00:54]} Nd4 {[%emt 0:32:55]} 33. Rc5 {[%emt 0:00:31]} Qf6 {[%emt 0:00:00]} 34. Rxd5 {[%emt 0:00:46]} Re1+ {[%emt 0:00:00]} 35. Kh2 {[%emt 0:00:02]} Rxd5 {[%emt 0:00:00]} 36. Bxd5 {[%emt 0:00:05]} Nf3+ {[%emt 0:00:00]} 0-1

[Event "Presidents Day NY GM A 2025"]
[Site "New York"]
[Date "2025.02.14"]
[Round "2.1"]
[White "Gauri, Shankar"]
[Black "Park, Evan"]
[Result "1/2-1/2"]
[Annotator "RC"]
[ECO "C47"]
[WhiteElo "2360"]
[BlackElo "2415"]
[PlyCount "209"]
[EventDate "2025.02.12"]
[EventType "tourn"]
[EventCountry "USA"]
[SourceTitle "playchess.com"]
[Source "ChessBase"]
[SourceQuality "1"]
[TimeControl "5400+30"]

1. e4 {[%emt 0:13:38]} e5 {[%emt 0:00:11]} 2. Nf3 {[%emt 0:00:05]} Nc6 {[%emt 0:00:04]} 3. Nc3 {[%emt 0:00:03]} Nf6 {[%emt 0:01:55]} 4. d4 {[%emt 0:00:11]} exd4 {[%emt 0:04:20]} 5. Nxd4 {[%emt 0:00:05]} Bb4 {[%emt 0:00:59]} 6. Nxc6 {[%emt 0:00:51]} bxc6 {[%emt 0:00:08]} 7. Bd3 {[%emt 0:00:06]} O-O {[%emt 0:02:43]} 8. O-O {[%emt 0:01:05]} Re8 {[%emt 0:03:27]} 9. Qf3 {[%emt 0:10:47]} h6 {[%emt 0:08:22]} 10. Bd2 {[%emt 0:10:41]} d6 {[%emt 0:06:34]} 11. h3 {[%emt 0:05:36]} Rb8 {[%emt 0:01:16]} 12. Rfe1 {[%emt 0:08:43]} Bc5 {[%emt 0:08:55]} 13. b3 {[%emt 0:02:54]} Nd7 {[%emt 0:05:49]} 14. Qg3 {[%emt 0:01:40]} Bd4 {[%emt 0:01:48]} 15. Rad1 {[%emt 0:01:49]} Nc5 {[%emt 0:05:20]} 16. Ne2 {[%emt 0:05:27]} Be5 {[%emt 0:00:20]} 17. f4 {[%emt 0:05:13]} Bf6 {[%emt 0:00:08]} 18. Qf3 {[%emt 0:01:43]} Bd7 {[%emt 0:11:11]} 19. Ng3 {[%emt 0:06:48]} Nxd3 {[%emt 0:02:14]} 20. Qxd3 {[%emt 0:00:34]} c5 {[%emt 0:02:27]} 21. Kh2 {[%emt 0:03:24]} Bd4 {[%emt 0:08:16]} 22. Be3 {[%emt 0:04:27]} Qh4 {[%emt 0:02:36]} 23. Bxd4 {[%emt 0:03:47]} cxd4 {[%emt 0:00:02]} 24. Qf3 {[%emt 0:01:12]} c5 {[%emt 0:03:45]} 25. c3 {[%emt 0:00:38]} dxc3 {[%emt 0:05:10]} 26. Rxd6 {[%emt 0:00:01]} Qe7 {[%emt 0:00:44]} 27. Rd3 {[%emt 0:05:59]} c2 {[%emt 0:03:23]} 28. Rc3 {[%emt 0:00:01]} c4 {[%emt 0:00:30]} 29. Rxc2 {[%emt 0:00:43]} cxb3 {[%emt 0:00:53]} 30. axb3 {[%emt 0:00:02]} Be6 {[%emt 0:00:50]} 31. Re3 {[%emt 0:00:30]} f6 {[%emt 0:00:24]} 32. Rcc3 {[%emt 0:03:30]} Rb5 {[%emt 0:03:50]} 33. Nf5 {[%emt 0:01:06]} Qb4 {[%emt 0:04:53]} 34. Rc7 {[%emt 0:01:09]} Bxf5 {[%emt 0:00:47]} 35. exf5 {[%emt 0:00:01]} Rxe3 {[%emt 0:00:28]} 36. Qxe3 {[%emt 0:00:25]} Rb8 {[%emt 0:01:14]} 37. Qg3 {[%emt 0:01:23]} Qf8 {[%emt 0:00:02]} 38. Rxa7 {[%emt 0:00:22]} Kh8 {[%emt 0:00:01]} 39. Rd7 {[%emt 0:01:29]} Qg8 {[%emt 0:00:25]} 40. Rd3 {[%emt 0:00:18]} Qc8 {[%emt 0:00:04]} 41. Qg4 {[%emt 0:00:50]} Rb5 {[%emt 0:01:28]} 42. Qg6 {[%emt 0:00:29]} Qb8 {[%emt 0:00:52]} 43. Rd4 {[%emt 0:00:50]} Rb4 {[%emt 0:02:06]} 44. Rxb4 {[%emt 0:00:27]} Qxb4 {[%emt 0:00:01]} 45. Qe8+ {[%emt 0:00:12]} Kh7 {[%emt 0:00:01]} 46. Qe3 {[%emt 0:00:19]} Qb5 {[%emt 0:00:14]} 47. g4 {[%emt 0:00:40]} Qd5 {[%emt 0:01:02]} 48. Qc3 {[%emt 0:01:40]} Qd6 {[%emt 0:00:42]} 49. Kg3 {[%emt 0:00:05]} Qd1 {[%emt 0:00:12]} 50. Kg2 {[%emt 0:00:57]} Qe2+ {[%emt 0:00:16]} 51. Kg3 {[%emt 0:00:02]} Qf1 {[%emt 0:01:18]} 52. Qe3 {[%emt 0:00:26]} Qb1 {[%emt 0:00:08]} 53. h4 {[%emt 0:00:21]} h5 {[%emt 0:00:15]} 54. gxh5 {[%emt 0:00:38]} Qxf5 {[%emt 0:00:03]} 55. Qe2 {[%emt 0:00:39]} Qb1 {[%emt 0:00:29]} 56. Qf3 {[%emt 0:00:25]} Qg1+ {[%emt 0:00:22]} 57. Kh3 {[%emt 0:00:07]} Qb1 {[%emt 0:00:03]} 58. Qe3 {[%emt 0:01:22]} Kh6 {[%emt 0:01:05]} 59. f5+ {[%emt 0:00:32]} Kh7 {[%emt 0:00:01]} 60. Kg4 {[%emt 0:00:23]} Qd1+ {[%emt 0:00:11]} 61. Qf3 {[%emt 0:00:39]} Qg1+ {[%emt 0:00:28]} 62. Kh3 {[%emt 0:00:16]} Qb1 {[%emt 0:00:05]} 63. Kg2 {[%emt 0:00:17]} Qc2+ {[%emt 0:00:19]} 64. Kg3 {[%emt 0:00:03]} Qb1 {[%emt 0:01:20]} 65. Kf4 {[%emt 0:00:26]} Qc1+ {[%emt 0:00:37]} 66. Ke4 {[%emt 0:00:15]} Qc6+ {[%emt 0:00:16]} 67. Kf4 {[%emt 0:00:37]} Qc1+ {[%emt 0:00:22]} 68. Qe3 {[%emt 0:00:12]} Qf1+ {[%emt 0:01:55]} 69. Ke4 {[%emt 0:00:23]} Qh1+ {[%emt 0:00:20]} 70. Kd3 {[%emt 0:02:00]} Qxh4 {[%emt 0:00:52]} 71. Qe4 {[%emt 0:00:22]} Qg3+ {[%emt 0:00:37]} 72. Kc4 {[%emt 0:00:37]} Qc7+ {[%emt 0:00:18]} 73. Kb4 {[%emt 0:00:22]} Qb6+ {[%emt 0:00:11]} 74. Kc3 {[%emt 0:00:10]} Qc5+ {[%emt 0:00:35]} 75. Qc4 {[%emt 0:00:17]} Qe5+ {[%emt 0:00:35]} 76. Qd4 {[%emt 0:00:05]} Qc7+ {[%emt 0:01:04]} 77. Kb4 {[%emt 0:00:25]} Qb7+ {[%emt 0:00:27]} 78. Kc4 {[%emt 0:00:01]} Qa6+ {[%emt 0:00:16]} 79. Kc3 {[%emt 0:00:19]} Qa1+ {[%emt 0:00:06]} 80. Kc4 {[%emt 0:00:30]} Qa6+ {[%emt 0:00:06]} 81. Kb4 {[%emt 0:00:38]} Qb7+ {[%emt 0:00:04]} 82. Ka3 {[%emt 0:00:21]} Qa6+ {[%emt 0:00:20]} 83. Qa4 {[%emt 0:00:31]} Qd3 {[%emt 0:00:21]} 84. Qg4 {[%emt 0:00:18]} Qd6+ {[%emt 0:00:24]} 85. b4 {[%emt 0:02:15]} Qd3+ {[%emt 0:00:06]} 86. Kb2 {[%emt 0:00:04]} Qd2+ {[%emt 0:00:05]} 87. Kb1 {[%emt 0:00:09]} Qd3+ {[%emt 0:00:32]} 88. Kc1 {[%emt 0:00:01]} Qc3+ {[%emt 0:00:58]} 89. Kd1 {[%emt 0:00:02]} Qd3+ {[%emt 0:00:17]} 90. Ke1 {[%emt 0:00:03]} Qe3+ {[%emt 0:00:18]} 91. Kf1 {[%emt 0:00:43]} Qc1+ {[%emt 0:00:15]} 92. Kg2 {[%emt 0:00:04]} Qd2+ {[%emt 0:00:08]} 93. Kh3 {[%emt 0:00:19]} Qc3+ {[%emt 0:00:11]} 94. Kh2 {[%emt 0:02:54]} Qd2+ {[%emt 0:00:04]} 95. Kh3 {[%emt 0:00:19]} Qc3+ {[%emt 0:00:01]} 96. Qg3 {[%emt 0:00:35]} Qxb4 {[%emt 0:00:03]} 97. h6 {[%emt 0:00:24]} Qf8 {[%emt 0:00:58]} 98. Qg6+ {[%emt 0:01:05]} Kh8 {[%emt 0:00:04]} 99. hxg7+ {[%emt 0:00:32]} Qxg7 {[%emt 0:00:05]} 100. Kg4 {[%emt 0:00:29]} Qxg6+ {[%emt 0:00:29]} 101. fxg6 {[%emt 0:00:02]} Kg8 {[%emt 0:00:13]} 102. Kf4 {[%emt 0:00:10]} Kf8 {[%emt 0:00:06]} 103. Ke4 {[%emt 0:00:11]} Kg8 {[%emt 0:00:05]} 104. Kf4 {[%emt 0:00:08]} Kf8 {[%emt 0:00:04]} 105. Ke4 {[%emt 0:00:03]} 1/2-1/2

[Event "Presidents Day NY GM A 2025"]
[Site "New York"]
[Date "2025.02.14"]
[Round "2.2"]
[White "Kaliksteyn, Alexander"]
[Black "Yang, Qindong"]
[Result "1/2-1/2"]
[Annotator "RC"]
[ECO "A22"]
[WhiteElo "2337"]
[BlackElo "2202"]
[PlyCount "37"]
[EventDate "2025.02.12"]
[EventType "tourn"]
[EventCountry "USA"]
[SourceTitle "playchess.com"]
[Source "ChessBase"]
[SourceQuality "1"]
[TimeControl "5400+30"]

1. c4 {[%emt 0:00:02]} e5 {[%emt 0:02:12]} 2. d3 {[%emt 0:00:37]} Nf6 {[%emt 0:01:18]} 3. Nc3 {[%emt 0:01:19]} Bb4 {[%emt 0:02:02]} 4. Bd2 {[%emt 0:00:08]} O-O {[%emt 0:01:14]} 5. a3 {[%emt 0:00:17]} Bxc3 {[%emt 0:00:35]} 6. Bxc3 {[%emt 0:00:06]} Re8 {[%emt 0:00:39]} 7. Nf3 {[%emt 0:10:58]} e4 {[%emt 0:02:59]} 8. dxe4 {[%emt 0:03:51]} Nxe4 {[%emt 0:00:30]} 9. Rc1 {[%emt 0:00:39]} Nc6 {[%emt 0:03:13]} 10. e3 {[%emt 0:05:45]} d6 {[%emt 0:01:45]} 11. Be2 {[%emt 1:12:18]} a5 {[%emt 0:01:42]} 12. b3 {[%emt 0:00:00]} Nxc3 {[%emt 0:02:53]} 13. Rxc3 {[%emt 0:00:00]} Qf6 {[%emt 0:01:03]} 14. Qd2 {[%emt 0:00:00]} Qg6 {[%emt 0:03:08]} 15. O-O {[%emt 0:00:00]} Bh3 {[%emt 0:03:29]} 16. Ne1 {[%emt 0:00:00]} Rad8 {[%emt 0:02:34]} 17. Bd3 {[%emt 0:00:00]} Bf5 {[%emt 0:03:12]} 18. Nf3 {[%emt 0:00:00]} Be4 {[%emt 0:03:03]} 19. Bxe4 {[%emt 0:00:00]} 1/2-1/2

[Event "Presidents Day NY GM A 2025"]
[Site "New York"]
[Date "2025.02.14"]
[Round "2.3"]
[White "Nagy, Gabor"]
[Black "Lenderman, Aleksandr"]
[Result "1/2-1/2"]
[Annotator "RC"]
[ECO "D14"]
[WhiteElo "2472"]
[BlackElo "2480"]
[PlyCount "31"]
[EventDate "2025.02.12"]
[EventType "tourn"]
[EventCountry "USA"]
[SourceTitle "playchess.com"]
[Source "ChessBase"]
[SourceQuality "1"]
[TimeControl "5400+30"]

1. d4 {[%emt 0:00:04]} d5 {[%emt 0:00:05]} 2. c4 {[%emt 0:00:15]} c6 {[%emt 0:00:05]} 3. cxd5 {[%emt 0:00:24]} cxd5 {[%emt 0:00:04]} 4. Bf4 {[%emt 0:00:16]} Nc6 {[%emt 0:00:26]} 5. e3 {[%emt 0:00:15]} Bf5 {[%emt 0:01:34]} 6. Nc3 {[%emt 0:00:38]} e6 {[%emt 0:00:25]} 7. Bd3 {[%emt 0:02:05]} Bxd3 {[%emt 0:00:08]} 8. Qxd3 {[%emt 0:00:07]} Nf6 {[%emt 0:00:08]} 9. Nf3 {[%emt 0:01:27]} Be7 {[%emt 0:00:05]} 10. h3 {[%emt 0:01:08]} O-O {[%emt 0:00:08]} 11. O-O {[%emt 0:00:10]} Qb6 {[%emt 0:00:18]} 12. Rab1 {[%emt 0:02:23]} Rfc8 {[%emt 0:00:20]} 13. Rfc1 {[%emt 0:00:15]} a6 {[%emt 0:01:27]} 14. Nd2 {[%emt 0:03:02]} Na5 {[%emt 0:02:44]} 15. Na4 {[%emt 0:04:13]} Qb4 {[%emt 0:00:48]} 16. Nc5 {[%emt 0:00:50]} 1/2-1/2

[Event "Presidents Day NY GM A 2025"]
[Site "New York"]
[Date "2025.02.14"]
[Round "2.4"]
[White "Stearman, Josiah"]
[Black "Jacobson, Aaron"]
[Result "1-0"]
[Annotator "RC"]
[ECO "C65"]
[WhiteElo "2439"]
[BlackElo "2343"]
[PlyCount "79"]
[EventDate "2025.02.12"]
[EventType "tourn"]
[EventCountry "USA"]
[SourceTitle "playchess.com"]
[Source "ChessBase"]
[SourceQuality "1"]
[TimeControl "5400+30"]

1. e4 {[%emt 0:07:53]} e5 {[%emt 0:00:06]} 2. Nf3 {[%emt 0:00:21]} Nc6 {[%emt 0:00:06]} 3. Bb5 {[%emt 0:00:05]} Nf6 {[%emt 0:00:18]} 4. O-O {[%emt 0:01:25]} Bc5 {[%emt 0:07:08]} 5. c3 {[%emt 0:16:09]} O-O {[%emt 0:00:21]} 6. d4 {[%emt 0:00:52]} Bb6 {[%emt 0:00:46]} 7. Bg5 {[%emt 0:06:45]} h6 {[%emt 0:01:32]} 8. Bh4 {[%emt 0:02:02]} d6 {[%emt 0:01:07]} 9. Bxc6 {[%emt 0:05:37]} bxc6 {[%emt 0:00:06]} 10. Qa4 {[%emt 0:09:00]} Qe8 {[%emt 0:32:48]} 11. dxe5 {[%emt 0:01:26]} dxe5 {[%emt 0:00:09]} 12. Bxf6 {[%emt 0:04:16]} gxf6 {[%emt 0:00:10]} 13. Nbd2 {[%emt 0:00:35]} a5 {[%emt 0:06:58]} 14. Nh4 {[%emt 0:02:58]} Kh7 {[%emt 0:05:46]} 15. Nf5 {[%emt 0:08:50]} Rg8 {[%emt 0:00:05]} 16. Qd1 {[%emt 0:03:33]} Be6 {[%emt 0:01:10]} 17. Qh5 {[%emt 0:01:05]} Qf8 {[%emt 0:00:08]} 18. Nf3 {[%emt 0:00:41]} a4 {[%emt 0:08:10]} 19. Rfd1 {[%emt 0:00:24]} Rg6 {[%emt 0:01:23]} 20. Rd3 {[%emt 0:06:04]} Bc4 {[%emt 0:01:21]} 21. Rd2 {[%emt 0:00:50]} Be6 {[%emt 0:00:47]} 22. Rad1 {[%emt 0:01:45]} Bxa2 {[%emt 0:01:06]} 23. N5h4 {[%emt 0:00:52]} Rg8 {[%emt 0:09:27]} 24. Qf5+ {[%emt 0:00:13]} Kg7 {[%emt 0:00:06]} 25. Rd7 {[%emt 0:00:13]} Re8 {[%emt 0:03:02]} 26. Qg6+ {[%emt 0:10:59]} Kh8 {[%emt 0:00:06]} 27. Qxf6+ {[%emt 0:00:04]} Qg7 {[%emt 0:00:03]} 28. Qxc6 {[%emt 0:02:13]} Be6 {[%emt 0:10:59]} 29. g3 {[%emt 0:00:12]} Ra8 {[%emt 0:03:00]} 30. Nf5 {[%emt 0:01:58]} Qf6 {[%emt 0:01:42]} 31. Re7 {[%emt 0:03:37]} a3 {[%emt 0:01:55]} 32. bxa3 {[%emt 0:00:06]} Rxa3 {[%emt 0:00:04]} 33. Re8 {[%emt 0:00:36]} h5 {[%emt 0:03:43]} 34. N3h4 {[%emt 0:02:58]} Qg5 {[%emt 0:00:55]} 35. Rxe6 {[%emt 0:00:23]} fxe6 {[%emt 0:00:10]} 36. Qxe6 {[%emt 0:00:02]} Ra5 {[%emt 0:01:11]} 37. Kg2 {[%emt 0:01:04]} Rb5 {[%emt 0:00:32]} 38. Rd7 {[%emt 0:00:27]} Bxf2 {[%emt 0:00:33]} 39. Qf7 {[%emt 0:00:24]} Rg7 {[%emt 0:00:25]} 40. Qxg7+ {[%emt 0:00:08]} 1-0

[Event "Presidents Day NY GM A 2025"]
[Site "New York"]
[Date "2025.02.14"]
[Round "2.5"]
[White "Paragua, Mark"]
[Black "Putnam, Liam"]
[Result "1-0"]
[Annotator "RC"]
[ECO "E18"]
[WhiteElo "2446"]
[BlackElo "2402"]
[PlyCount "53"]
[EventDate "2025.02.12"]
[EventType "tourn"]
[EventCountry "USA"]
[SourceTitle "playchess.com"]
[Source "ChessBase"]
[SourceQuality "1"]
[TimeControl "5400+30"]

1. d4 {[%emt 0:00:19]} Nf6 {[%emt 0:00:41]} 2. c4 {[%emt 0:00:15]} e6 {[%emt 0:00:14]} 3. g3 {[%emt 0:00:34]} d5 {[%emt 0:09:21]} 4. Bg2 {[%emt 0:00:22]} Be7 {[%emt 0:04:31]} 5. Nf3 {[%emt 0:00:07]} O-O {[%emt 0:00:04]} 6. O-O {[%emt 0:00:06]} dxc4 {[%emt 0:00:02]} 7. Qc2 {[%emt 0:01:00]} b6 {[%emt 0:00:26]} 8. Qxc4 {[%emt 0:03:52]} Bb7 {[%emt 0:01:49]} 9. Nc3 {[%emt 0:00:24]} Nbd7 {[%emt 0:09:22]} 10. Ne5 {[%emt 0:11:58]} Bxg2 {[%emt 0:00:13]} 11. Kxg2 {[%emt 0:00:06]} Nxe5 {[%emt 0:00:41]} 12. dxe5 {[%emt 0:00:06]} Nd7 {[%emt 0:00:07]} 13. f4 {[%emt 0:01:49]} c5 {[%emt 0:03:26]} 14. Qe4 {[%emt 0:02:15]} a6 {[%emt 0:01:13]} 15. f5 {[%emt 0:01:32]} Ra7 {[%emt 0:14:40]} 16. f6 {[%emt 0:04:23]} gxf6 {[%emt 0:00:53]} 17. Bh6 {[%emt 0:00:09]} f5 {[%emt 0:01:44]} 18. Qf4 {[%emt 0:00:11]} Re8 {[%emt 0:13:47]} 19. e4 {[%emt 0:00:47]} Kh8 {[%emt 0:00:20]} 20. exf5 {[%emt 0:01:03]} Qa8+ {[%emt 0:03:11]} 21. Kh3 {[%emt 0:12:39]} exf5 {[%emt 0:01:45]} 22. Qxf5 {[%emt 0:03:14]} Qc6 {[%emt 0:00:24]} 23. Bg7+ {[%emt 0:01:37]} Kxg7 {[%emt 0:01:08]} 24. Qxf7+ {[%emt 0:00:11]} Kh6 {[%emt 0:00:06]} 25. Qxe8 {[%emt 0:00:23]} Qe6+ {[%emt 0:02:11]} 26. g4 {[%emt 0:01:25]} Kg7 {[%emt 0:01:16]} 27. Qh5 {[%emt 0:02:50]} 1-0

[Event "Presidents Day NY GM A 2025"]
[Site "New York"]
[Date "2025.02.15"]
[Round "3.1"]
[White "Putnam, Liam"]
[Black "Gauri, Shankar"]
[Result "1-0"]
[Annotator "RC"]
[ECO "C54"]
[WhiteElo "2402"]
[BlackElo "2360"]
[PlyCount "82"]
[EventDate "2025.02.12"]
[EventType "tourn"]
[EventCountry "USA"]
[SourceTitle "playchess.com"]
[Source "ChessBase"]
[SourceQuality "1"]
[TimeControl "5400+30"]

1. e4 {[%emt 0:00:10]} e5 {[%emt 0:13:23]} 2. Nf3 {[%emt 0:00:11]} Nc6 {[%emt 0:00:22]} 3. Bc4 {[%emt 0:00:10]} Bc5 {[%emt 0:00:13]} 4. c3 {[%emt 0:00:07]} Nf6 {[%emt 0:00:06]} 5. d3 {[%emt 0:00:05]} d6 {[%emt 0:01:54]} 6. O-O {[%emt 0:00:10]} h6 {[%emt 0:00:45]} 7. Nbd2 {[%emt 0:01:46]} O-O {[%emt 0:00:38]} 8. Re1 {[%emt 0:01:03]} a6 {[%emt 0:06:14]} 9. Nf1 {[%emt 0:01:32]} Ba7 {[%emt 0:00:38]} 10. Ng3 {[%emt 0:01:11]} Na5 {[%emt 0:03:50]} 11. Bb3 {[%emt 0:00:24]} Nxb3 {[%emt 0:00:24]} 12. axb3 {[%emt 0:00:04]} Re8 {[%emt 0:04:50]} 13. h3 {[%emt 0:00:24]} Be6 {[%emt 0:13:52]} 14. b4 {[%emt 0:01:15]} c6 {[%emt 0:08:00]} 15. d4 {[%emt 0:02:29]} Bb8 {[%emt 0:11:02]} 16. Be3 {[%emt 0:03:09]} Bc7 {[%emt 0:02:11]} 17. Qc2 {[%emt 0:07:18]} Nh7 {[%emt 0:07:14]} 18. c4 {[%emt 0:03:35]} exd4 {[%emt 0:12:06]} 19. Nxd4 {[%emt 0:02:13]} Qf6 {[%emt 0:05:38]} 20. Ndf5 {[%emt 0:03:39]} Bxf5 {[%emt 0:00:28]} 21. Nxf5 {[%emt 0:00:06]} Ng5 {[%emt 0:00:38]} 22. Bd4 {[%emt 0:06:54]} Qg6 {[%emt 0:00:09]} 23. Kh1 {[%emt 0:00:14]} Ne6 {[%emt 0:03:45]} 24. Bc3 {[%emt 0:00:11]} Rad8 {[%emt 0:01:00]} 25. Rad1 {[%emt 0:02:31]} Nf4 {[%emt 0:00:04]} 26. f3 {[%emt 0:04:30]} Ne6 {[%emt 0:00:28]} 27. Re2 {[%emt 0:04:09]} Qg5 {[%emt 0:00:34]} 28. h4 {[%emt 0:06:33]} Qg6 {[%emt 0:00:01]} 29. Red2 {[%emt 0:00:52]} h5 {[%emt 0:01:21]} 30. g4 {[%emt 0:04:11]} hxg4 {[%emt 0:02:08]} 31. Rg1 {[%emt 0:00:19]} Qh7 {[%emt 0:01:03]} 32. Bxg7 {[%emt 0:01:55]} Nxg7 {[%emt 0:00:38]} 33. Rxg4 {[%emt 0:00:05]} Kf8 {[%emt 0:00:23]} 34. Rxg7 {[%emt 0:00:09]} Qxg7 {[%emt 0:00:48]} 35. Nxg7 {[%emt 0:00:04]} Kxg7 {[%emt 0:00:04]} 36. Rg2+ {[%emt 0:00:06]} Kf8 {[%emt 0:00:15]} 37. Qd2 {[%emt 0:01:17]} Re6 {[%emt 0:00:21]} 38. h5 {[%emt 0:01:44]} Ke7 {[%emt 0:00:38]} 39. Qg5+ {[%emt 0:00:22]} Rf6 {[%emt 0:00:47]} 40. f4 {[%emt 0:00:17]} Ke6 {[%emt 0:00:28]} 41. Re2 {[%emt 0:00:38]} Rh8 {[%emt 0:01:39]} 1-0

[Event "Presidents Day NY GM A 2025"]
[Site "New York"]
[Date "2025.02.15"]
[Round "3.2"]
[White "Jacobson, Aaron"]
[Black "Paragua, Mark"]
[Result "1-0"]
[Annotator "RC"]
[ECO "D55"]
[WhiteElo "2343"]
[BlackElo "2446"]
[PlyCount "93"]
[EventDate "2025.02.12"]
[EventType "tourn"]
[EventCountry "USA"]
[SourceTitle "playchess.com"]
[Source "ChessBase"]
[SourceQuality "1"]
[TimeControl "5400+30"]

1. c4 {[%emt 0:01:15]} e6 {[%emt 0:00:22]} 2. Nc3 {[%emt 0:00:34]} d5 {[%emt 0:00:29]} 3. d4 {[%emt 0:00:06]} Nf6 {[%emt 0:00:17]} 4. Bg5 {[%emt 0:00:16]} Be7 {[%emt 0:02:26]} 5. e3 {[%emt 0:01:12]} O-O {[%emt 0:00:20]} 6. Nf3 {[%emt 0:00:19]} h6 {[%emt 0:02:19]} 7. Bf4 {[%emt 0:00:58]} c5 {[%emt 0:02:23]} 8. dxc5 {[%emt 0:00:20]} Qa5 {[%emt 0:02:25]} 9. a3 {[%emt 0:04:29]} dxc4 {[%emt 0:03:14]} 10. Bxc4 {[%emt 0:00:19]} Qxc5 {[%emt 0:00:10]} 11. Qe2 {[%emt 0:00:27]} Nc6 {[%emt 0:00:39]} 12. b4 {[%emt 0:03:14]} Qh5 {[%emt 0:00:16]} 13. Ne5 {[%emt 0:04:16]} Qxe2+ {[%emt 0:01:30]} 14. Bxe2 {[%emt 0:00:38]} Nxe5 {[%emt 0:02:39]} 15. Bxe5 {[%emt 0:00:05]} a5 {[%emt 0:01:37]} 16. b5 {[%emt 0:00:49]} Nd7 {[%emt 0:00:07]} 17. Bg3 {[%emt 0:01:51]} Nc5 {[%emt 0:04:40]} 18. O-O {[%emt 0:00:40]} Bd7 {[%emt 0:00:42]} 19. Rfd1 {[%emt 0:04:19]} Rac8 {[%emt 0:06:52]} 20. Na4 {[%emt 0:01:59]} Nxa4 {[%emt 0:00:06]} 21. Rxd7 {[%emt 0:00:06]} Bf6 {[%emt 0:00:03]} 22. Re1 {[%emt 0:03:01]} b6 {[%emt 0:00:45]} 23. Kf1 {[%emt 0:18:25]} Rfd8 {[%emt 0:07:54]} 24. Rxd8+ {[%emt 0:01:13]} Rxd8 {[%emt 0:01:05]} 25. Rc1 {[%emt 0:10:24]} Nc3 {[%emt 0:00:15]} 26. Bc7 {[%emt 0:01:55]} Rd5 {[%emt 0:01:00]} 27. Bc4 {[%emt 0:06:58]} Rh5 {[%emt 0:20:22]} 28. g4 {[%emt 0:09:10]} Rg5 {[%emt 0:03:23]} 29. Bxb6 {[%emt 0:01:00]} Rxg4 {[%emt 0:00:10]} 30. f4 {[%emt 0:00:34]} g5 {[%emt 0:33:40]} 31. Bxa5 {[%emt 0:01:08]} Nxb5 {[%emt 0:00:07]} 32. Bxb5 {[%emt 0:24:30]} gxf4 {[%emt 0:00:05]} 33. Bc3 {[%emt 0:00:00]} Bg5 {[%emt 0:01:13]} 34. a4 {[%emt 0:00:00]} fxe3 {[%emt 0:00:23]} 35. Ke2 {[%emt 0:00:00]} Rg2+ {[%emt 0:00:35]} 36. Kd3 {[%emt 0:00:00]} Rxh2 {[%emt 0:02:39]} 37. a5 {[%emt 0:00:00]} e2 {[%emt 0:00:16]} 38. Rc2 {[%emt 0:00:00]} Bf6 {[%emt 0:01:15]} 39. Be1 {[%emt 0:00:00]} Rh5 {[%emt 0:00:34]} 40. Bc4 {[%emt 0:00:00]} Bd8 {[%emt 0:00:35]} 41. a6 {[%emt 0:00:00]} Bb6 {[%emt 0:00:03]} 42. Rxe2 {[%emt 0:00:00]} Rh3+ {[%emt 0:00:27]} 43. Kc2 {[%emt 0:00:00]} h5 {[%emt 0:00:41]} 44. Bf2 {[%emt 0:00:00]} Bxf2 {[%emt 0:00:12]} 45. Rxf2 {[%emt 0:00:00]} Ra3 {[%emt 0:00:07]} 46. Kb2 {[%emt 0:00:00]} Ra5 {[%emt 0:00:07]} 47. Kb3 {[%emt 0:00:00]} 1-0

[Event "Presidents Day NY GM A 2025"]
[Site "New York"]
[Date "2025.02.15"]
[Round "3.3"]
[White "Lenderman, Aleksandr"]
[Black "Stearman, Josiah"]
[Result "1/2-1/2"]
[Annotator "RC"]
[ECO "E04"]
[WhiteElo "2480"]
[BlackElo "2439"]
[PlyCount "30"]
[EventDate "2025.02.12"]
[EventType "tourn"]
[EventCountry "USA"]
[SourceTitle "playchess.com"]
[Source "ChessBase"]
[SourceQuality "1"]
[TimeControl "5400+30"]

1. d4 {[%emt 0:00:02]} Nf6 {[%emt 0:03:47]} 2. c4 {[%emt 0:00:06]} e6 {[%emt 0:00:04]} 3. g3 {[%emt 0:00:09]} d5 {[%emt 0:00:25]} 4. Bg2 {[%emt 0:00:12]} Bb4+ {[%emt 0:00:10]} 5. Nd2 {[%emt 0:07:04]} O-O {[%emt 0:06:47]} 6. Ngf3 {[%emt 0:00:05]} dxc4 {[%emt 0:02:14]} 7. Qc2 {[%emt 0:00:15]} c5 {[%emt 0:11:00]} 8. dxc5 {[%emt 0:04:57]} Nc6 {[%emt 0:04:22]} 9. O-O {[%emt 0:02:51]} e5 {[%emt 0:10:19]} 10. Ne4 {[%emt 0:17:42]} Nxe4 {[%emt 0:14:52]} 11. Qxe4 {[%emt 0:00:17]} Bxc5 {[%emt 0:00:32]} 12. Ng5 {[%emt 0:02:43]} g6 {[%emt 0:01:01]} 13. Qh4 {[%emt 0:00:53]} h5 {[%emt 0:00:04]} 14. Qxc4 {[%emt 0:00:16]} Qd4 {[%emt 0:02:33]} 15. Qc2 {[%emt 0:09:04]} Bb6 {[%emt 0:03:40]} 1/2-1/2